fUSD/lending_fUSD_20260404
["ID","MTS","AMOUNT","RATE_DAILY","PERIOD"]
[419659292,1775261444111,-150.0,0.00037671,7]
[419659293,1775261444120,-150.0,0.00037733,7]
[419659294,1775261444130,-150.0,0.00038014,7]
[419659295,1775261444139,-150.0,0.00038014,7]
[419659296,1775261444149,-150.0,0.00038014,7]
[419659297,1775261444158,-150.0,0.00038107,7]
[419659298,1775261444167,-150.0,0.00038356,7]
[419659299,1775261444177,-383.0,0.00038393,30]
[419659300,1775261444187,-150.0,0.00038481,7]
[419659301,1775261444197,-150.0,0.00038527,7]
[419659302,1775261444206,-150.0,0.00038699,7]
[419659303,1775261444215,-150.0,0.00038854,7]
[419659305,1775261444224,-150.0,0.00039036,7]
[419659306,1775261444233,-150.0,0.00039041,7]
[419659308,1775261444243,-150.0,0.00039041,7]
[419659309,1775261444252,-150.0,0.00039041,7]
[419659310,1775261444261,-150.0,0.00039228,7]
[419659311,1775261444271,-150.0,0.00039384,7]
[419659312,1775261444280,-383.0,0.00039393,30]
[419659313,1775261444290,-150.0,0.00039555,7]
[419659314,1775261444299,-150.0,0.00039601,7]
[419659315,1775261444308,-150.0,0.00039726,7]
[419659316,1775261444316,-1517.3833461,0.00039862,2]
[419659317,1775261444325,-6017.0,0.0003989,2]
[419659318,1775261444334,-5759.84,0.000399,30]
[419659319,1775261444343,-150.0,0.00039975,7]
[419659320,1775261444352,-31668.37578013,0.0004,120]
[419659321,1775261444361,-150.0,0.00040068,7]
[419659322,1775261444371,-150.0,0.00040068,7]
[419659323,1775261444380,-150.0,0.00040068,7]
[419659325,1775261444388,-788.11498,0.000401,20]
[419659326,1775261444398,-1429.67082145,0.000402,120]
[419659328,1775261444407,-260.25415807,0.00040286,2]
[419659329,1775261444416,-150.0,0.00040349,7]
[419659330,1775261444426,-383.0,0.00040393,30]
[419659331,1775261444435,-150.0,0.00040411,7]
[419659332,1775261444444,-150.0,0.000405,120]
[419659333,1775261444454,-2000.0,0.000405,7]
[419659334,1775261444463,-150.0,0.00040582,7]
[419659335,1775261444472,-2110.0,0.000406,30]
[419659336,1775261444481,-200.0,0.000406,14]
[419659337,1775261444490,-2000.0,0.000406,7]
[419659338,1775261444499,-1564.31,0.00040679,30]
[419659339,1775261444508,-1564.31,0.00040679,30]
[419659340,1775261444517,-1564.31,0.00040679,30]
[419659341,1775261444527,-1564.31,0.00040679,30]
[419659342,1775261444536,-1564.32,0.00040679,30]
[419659343,1775261444545,-1147.21,0.00040679,30]
[419659344,1775261444554,-1564.31,0.00040679,30]
[419659345,1775261444563,-1564.31,0.00040679,30]
[419659346,1775261444572,-1564.33,0.00040679,30]
[419659347,1775261444582,-1564.31,0.00040679,30]
[419659348,1775261444591,-1564.31,0.00040679,30]
[419659349,1775261444600,-1564.31,0.00040679,30]
[419659350,1775261444609,-1564.31,0.00040679,30]
[419659351,1775261444618,-1564.3,0.00040679,30]
[419659352,1775261444628,-1564.31,0.00040679,30]
[419659353,1775261444637,-1564.31,0.00040679,30]
[419659354,1775261444647,-1564.31,0.00040679,30]
[419659355,1775261444656,-1564.31,0.00040679,30]
[419659356,1775261444665,-1564.31,0.00040679,30]
[419659357,1775261444675,-1564.31,0.00040679,30]
[419659358,1775261444684,-1564.31,0.00040679,30]
[419659359,1775261444693,-1564.28,0.00040679,30]
[419659360,1775261444702,-1564.33,0.00040679,30]
[419659361,1775261444711,-1564.31,0.00040679,30]
[419659362,1775261444721,-1564.31,0.00040679,30]
[419659363,1775261444730,-1564.3,0.00040679,30]
[419659364,1775261444739,-1564.31,0.00040679,30]
[419659365,1775261444748,-1564.31,0.0004068,30]
[419659366,1775261444758,-1564.33,0.0004068,30]
[419659367,1775261444767,-1564.31,0.0004068,30]
[419659368,1775261444776,-1564.31,0.0004068,30]
[419659369,1775261444785,-1564.31,0.0004068,30]
[419659370,1775261444794,-254.26827,0.0004068,120]
[419659371,1775261444803,-254.26827,0.0004068,120]
[419659372,1775261444812,-254.26828,0.0004068,120]
[419659373,1775261444821,-254.26827,0.0004068,120]
[419659374,1775261444830,-254.26827,0.0004068,120]
[419659375,1775261444839,-200.0,0.000407,14]
[419659376,1775261444849,-150.0,0.00040722,7]
[419659377,1775261444859,-150.0,0.00040753,7]
[419659378,1775261444868,-224.0,0.00040793,2]
[419659379,1775261444877,-200.0,0.000408,14]
[419659380,1775261444886,-500.0,0.00040818,60]
[419659381,1775261444895,-500.0,0.00040818,60]
[419659382,1775261444904,-500.0,0.00040818,60]
[419659383,1775261444914,-500.0,0.00040818,60]
[419659384,1775261444924,-500.0,0.00040818,60]
[419659385,1775261444938,-331.02953618,0.00040818,60]
[419659386,1775261444947,-500.0,0.00040818,2]
[419659387,1775261444956,-500.0,0.00040818,2]
[419659388,1775261444967,-500.0,0.00040818,2]
[419659389,1775261444976,-500.0,0.00040818,2]
[419659390,1775261444986,-500.0,0.00040818,2]
[419659391,1775261444996,-500.0,0.00040818,2]
[419659392,1775261445006,-500.0,0.00040818,2]
[419659393,1775261445015,-500.0,0.00040818,2]
[419659394,1775261445025,-251.59239178,0.00040826,30]
[419659395,1775261445035,-150.0,0.00040861,120]
[419659396,1775261445045,-5759.84,0.000409,30]
[419659397,1775261445055,-1095.88590147,0.000409,15]
[419659398,1775261445065,-253.0,0.000409,14]
[419659399,1775261445074,-84729.0,0.0004095,60]
[419659400,1775261445084,-514.0,0.00040981,26]
[419659401,1775261445094,-18859.98900472,0.00040995,15]
[419659402,1775261445103,-271.8741362,0.00041,2]
[419659403,1775261445112,-150.0,0.00041,120]
[419659404,1775261445122,-444.96856751,0.00041,120]
[419659405,1775261445131,-200.0,0.00041,10]
[419659406,1775261445142,-1654.4775722,0.00041,2]
[419659407,1775261445151,-500.0,0.00041073,5]
[419659408,1775261445161,-388.43757161,0.00041073,5]
[419659409,1775261445170,-359.53338277,0.00041085,7]
[419659410,1775261445179,-150.0,0.00041092,120]
[419659411,1775261445189,-157.13720948,0.00041092,120]
[419659412,1775261445199,-164.15938689,0.00041092,120]
[419659413,1775261445208,-500.0,0.00041092,120]
[419659414,1775261445219,-500.0,0.00041092,120]
[419659415,1775261445228,-500.0,0.00041092,120]
[419659416,1775261445238,-500.0,0.00041092,120]
[419659417,1775261445248,-500.0,0.00041092,120]
[419659418,1775261445258,-500.0,0.00041092,120]
[419659419,1775261445268,-500.0,0.00041092,120]
[419659420,1775261445278,-500.0,0.00041092,120]
[419659421,1775261445287,-508.83736131,0.00041092,120]
[419659422,1775261445297,-151.0,0.00041092,14]
[419659423,1775261445306,-553.45203859,0.00041094,60]
[419659424,1775261445316,-553.45203859,0.00041094,60]
[419659425,1775261445326,-533.78065356,0.00041095,120]
[419659426,1775261445335,-500.0,0.00041095,120]
[419659427,1775261445345,-500.0,0.00041095,120]
[419659428,1775261445354,-500.0,0.00041095,120]
[419659429,1775261445364,-167.5,0.00041095,120]
[419659430,1775261445373,-500.0,0.00041095,120]
[419659431,1775261445382,-500.0,0.00041095,120]
[419659432,1775261445392,-500.0,0.00041095,120]
[419659433,1775261445402,-395.5582264,0.00041095,120]
[419659434,1775261445411,-500.0,0.00041095,120]
[419659435,1775261445420,-500.0,0.00041095,120]
[419659436,1775261445431,-500.0,0.00041095,120]
[419659437,1775261445440,-500.0,0.00041095,120]
[419659438,1775261445450,-500.0,0.00041095,120]
[419659439,1775261445463,-500.0,0.00041095,120]
[419659440,1775261445472,-500.0,0.00041095,120]
[419659441,1775261445482,-500.0,0.00041095,120]
[419659442,1775261445491,-500.0,0.00041095,120]
[419659443,1775261445501,-500.0,0.00041095,2]
[419659444,1775261445510,-500.0,0.00041095,120]
[419659445,1775261445520,-500.0,0.00041095,120]
[419659446,1775261445529,-500.0,0.00041095,120]
[419659447,1775261445539,-500.0,0.00041095,120]
[419659448,1775261445549,-500.0,0.00041095,120]
[419659449,1775261445558,-500.0,0.00041095,120]
[419659450,1775261445568,-500.0,0.00041095,120]
[419659451,1775261445577,-500.0,0.00041095,120]
[419659452,1775261445587,-500.0,0.00041095,120]
[419659453,1775261445596,-500.0,0.00041095,120]
[419659454,1775261445605,-500.0,0.00041095,120]
[419659455,1775261445616,-622.14,0.00041095,120]
[419659456,1775261445625,-1649.0,0.00041095,120]
[419659457,1775261445635,-628.52,0.00041095,120]
[419659458,1775261445645,-373.93504599,0.00041095,120]
[419659459,1775261445655,-500.0,0.00041095,120]
[419659460,1775261445665,-500.0,0.00041095,120]
[419659461,1775261445675,-500.0,0.00041095,120]
[419659462,1775261445685,-500.0,0.00041095,120]
[419659463,1775261445695,-500.0,0.00041095,120]
[419659464,1775261445704,-500.0,0.00041095,120]
[419659465,1775261445714,-500.0,0.00041095,120]
[419659466,1775261445723,-500.0,0.00041095,120]
[419659467,1775261445732,-500.0,0.00041095,120]
[419659468,1775261445742,-500.0,0.00041095,120]
[419659469,1775261445752,-348.37439668,0.00041095,120]
[419659470,1775261445761,-1188.58,0.00041095,120]
[419659471,1775261445770,-500.0,0.00041095,120]
[419659472,1775261445780,-500.0,0.00041095,120]
[419659473,1775261445789,-500.0,0.00041095,120]
[419659474,1775261445800,-500.0,0.00041095,120]
[419659475,1775261445809,-696.79,0.00041095,120]
[419659476,1775261445819,-500.0,0.00041095,14]
[419659477,1775261445828,-679.4,0.00041095,120]
[419659478,1775261445837,-500.0,0.00041095,120]
[419659479,1775261445846,-529.08,0.00041095,120]
[419659480,1775261445856,-500.0,0.00041095,120]
[419659481,1775261445865,-500.0,0.00041095,120]
[419659482,1775261445874,-500.0,0.00041095,120]
[419659483,1775261445883,-475.89388578,0.00041095,120]
[419659484,1775261445892,-500.0,0.00041095,120]
[419659485,1775261445902,-500.0,0.00041095,120]
[419659486,1775261445911,-500.0,0.00041095,120]
[419659487,1775261445921,-500.0,0.00041095,120]
[419659488,1775261445930,-845.91,0.00041095,120]
[419659489,1775261445940,-500.0,0.00041095,120]
[419659490,1775261445950,-500.0,0.00041095,120]
[419659491,1775261445959,-500.0,0.00041095,60]
[419659492,1775261445969,-500.0,0.00041095,120]
[419659493,1775261445978,-500.0,0.00041095,120]
[419659494,1775261445987,-500.0,0.00041095,120]
[419659495,1775261445996,-500.0,0.00041095,120]
[419659496,1775261446005,-500.0,0.00041095,120]
[419659497,1775261446015,-500.0,0.00041095,120]
[419659498,1775261446024,-500.0,0.00041095,120]
[419659499,1775261446034,-500.0,0.00041095,120]
[419659500,1775261446043,-500.0,0.00041095,120]
[419659501,1775261446053,-500.0,0.00041095,120]
[419659502,1775261446062,-500.0,0.00041095,120]
[419659503,1775261446072,-500.0,0.00041095,120]
[419659504,1775261446081,-500.0,0.00041095,120]
[419659505,1775261446091,-500.0,0.00041095,120]
[419659506,1775261446100,-500.0,0.00041095,120]
[419659507,1775261446110,-500.0,0.00041095,120]
[419659508,1775261446119,-500.0,0.00041095,120]
[419659509,1775261446128,-500.0,0.00041095,120]
[419659510,1775261446138,-500.0,0.00041095,120]
[419659511,1775261446147,-500.0,0.00041095,120]
[419659512,1775261446156,-588.89,0.00041095,120]
[419659513,1775261446166,-500.0,0.00041095,120]
[419659514,1775261446175,-500.0,0.00041095,120]
[419659515,1775261446185,-904.63,0.00041095,7]
[419659516,1775261446194,-500.0,0.00041095,120]
[419659517,1775261446203,-500.0,0.00041095,120]
[419659518,1775261446214,-1079.34,0.00041095,120]
[419659519,1775261446223,-500.0,0.00041095,120]
[419659520,1775261446233,-500.0,0.00041095,7]
[419659521,1775261446244,-500.0,0.00041095,120]
[419659522,1775261446253,-500.0,0.00041095,120]
[419659523,1775261446263,-500.0,0.00041095,120]
[419659524,1775261446273,-798.63,0.00041095,120]
[419659525,1775261446283,-500.0,0.00041095,120]
[419659526,1775261446292,-500.0,0.00041095,120]
[419659527,1775261446302,-1066.93,0.00041095,120]
[419659528,1775261446312,-1127.29,0.00041095,120]
[419659529,1775261446322,-500.0,0.00041095,120]
[419659530,1775261446333,-500.0,0.00041095,120]
[419659531,1775261446345,-500.0,0.00041095,120]
[419659532,1775261446354,-500.0,0.00041095,120]
[419659533,1775261446364,-500.0,0.00041095,120]
[419659534,1775261446374,-500.0,0.00041095,120]
[419659535,1775261446384,-500.0,0.00041095,120]
[419659536,1775261446394,-500.0,0.00041095,120]
[419659537,1775261446403,-500.0,0.00041095,120]
[419659538,1775261446413,-500.0,0.00041095,120]
[419659539,1775261446422,-500.0,0.00041095,120]
[419659540,1775261446432,-500.0,0.00041095,120]
[419659541,1775261446441,-500.0,0.00041095,120]
[419659542,1775261446451,-500.0,0.00041095,30]
[419659543,1775261446461,-643.65177207,0.00041095,120]
[419659544,1775261446471,-500.0,0.00041095,120]
[419659545,1775261446491,-500.0,0.00041095,120]
[419659546,1775261446502,-500.0,0.00041095,14]
[419659547,1775261446512,-500.0,0.00041095,120]
[419659548,1775261446522,-500.0,0.00041095,120]
[419659549,1775261446533,-5000.0,0.00041095,120]
[419659550,1775261446543,-500.0,0.00041095,120]
[419659551,1775261446552,-500.0,0.00041095,120]
[419659552,1775261446562,-500.0,0.00041095,30]
[419659553,1775261446572,-500.0,0.00041095,120]
[419659554,1775261446582,-500.0,0.00041095,60]
[419659555,1775261446591,-500.0,0.00041095,120]
[419659556,1775261446601,-500.0,0.00041095,120]
[419659557,1775261446611,-500.0,0.00041095,120]
[419659558,1775261446621,-500.0,0.00041095,120]
[419659559,1775261446631,-500.0,0.00041095,120]
[419659560,1775261446641,-500.0,0.00041095,120]
[419659561,1775261446651,-500.0,0.00041095,120]
[419659562,1775261446661,-500.0,0.00041095,120]
[419659563,1775261446671,-500.0,0.00041095,120]
[419659564,1775261446681,-542.95971788,0.00041095,120]
[419659565,1775261446692,-500.0,0.00041095,120]
[419659566,1775261446701,-500.0,0.00041095,120]
[419659567,1775261446711,-500.0,0.00041095,120]
[419659568,1775261446720,-500.0,0.00041095,120]
[419659569,1775261446730,-500.0,0.00041095,120]
[419659570,1775261446740,-556.37999585,0.00041095,120]
[419659571,1775261446750,-500.0,0.00041095,120]
[419659572,1775261446760,-500.0,0.00041095,120]
[419659573,1775261446769,-500.0,0.00041095,120]
[419659574,1775261446779,-573.8519161,0.00041095,120]
[419659575,1775261446788,-1096.06,0.00041095,120]
[419659576,1775261446798,-500.0,0.00041095,120]
[419659577,1775261446807,-500.0,0.00041095,120]
[419659578,1775261446818,-500.0,0.00041095,120]
[419659579,1775261446828,-500.0,0.00041095,120]
[419659580,1775261446837,-500.0,0.00041095,120]
[419659581,1775261446847,-500.0,0.00041095,120]
[419659582,1775261446857,-500.0,0.00041095,30]
[419659583,1775261446867,-500.0,0.00041095,120]
[419659584,1775261446876,-500.0,0.00041095,120]
[419659585,1775261446886,-500.0,0.00041095,120]
[419659586,1775261446896,-500.0,0.00041095,120]
[419659587,1775261446907,-500.0,0.00041095,120]
[419659588,1775261446918,-500.0,0.00041095,120]
[419659589,1775261446928,-500.0,0.00041095,120]
[419659590,1775261446938,-500.0,0.00041095,120]
[419659591,1775261446948,-500.0,0.00041095,120]
[419659592,1775261446958,-500.0,0.00041095,60]
[419659593,1775261446968,-500.0,0.00041095,120]
[419659594,1775261446978,-500.0,0.00041095,120]
[419659595,1775261446988,-500.0,0.00041095,120]
[419659603,1775261447324,-500.0,0.00041095,120]
[419659604,1775261447334,-515.0,0.00041095,120]
[419659605,1775261447344,-500.0,0.00041095,120]
[419659606,1775261447353,-262.84966557,0.00041095,120]
[419659607,1775261447363,-500.0,0.00041095,120]
[419659608,1775261447373,-1297.64,0.00041095,120]
[419659609,1775261447382,-500.0,0.00041095,120]
[419659610,1775261447392,-545.89259487,0.00041095,120]
[419659611,1775261447401,-500.0,0.00041095,120]
[419659612,1775261447411,-500.0,0.00041095,120]
[419659613,1775261447420,-500.0,0.00041095,120]
[419659614,1775261447430,-500.0,0.00041095,120]
[419659615,1775261447439,-500.0,0.00041095,120]
[419659616,1775261447449,-500.0,0.00041095,120]
[419659617,1775261447458,-500.0,0.00041095,120]
[419659618,1775261447468,-500.0,0.00041095,120]
[419659619,1775261447478,-500.0,0.00041095,120]
[419659620,1775261447487,-150.0,0.00041095,2]
[419659621,1775261447496,-530.54,0.00041095,120]
[419659622,1775261447506,-500.0,0.00041095,120]
[419659623,1775261447516,-500.0,0.00041095,120]
[419659624,1775261447526,-500.0,0.00041095,60]
[419659625,1775261447535,-500.0,0.00041095,120]
[419659626,1775261447545,-500.0,0.00041095,120]
[419659627,1775261447554,-500.0,0.00041095,120]
[419659628,1775261447564,-934.03,0.00041095,120]
[419659629,1775261447573,-500.0,0.00041095,120]
[419659630,1775261447582,-500.0,0.00041095,120]
[419659631,1775261447591,-628.99735316,0.00041095,120]
[419659632,1775261447601,-9306.01431476,0.00041095,2]
[419659633,1775261447611,-500.0,0.00041095,120]
[419659634,1775261447620,-500.0,0.00041095,120]
[419659635,1775261447629,-500.0,0.00041095,120]
[419659636,1775261447638,-500.0,0.00041095,120]
[419659637,1775261447647,-500.0,0.00041095,120]
[419659638,1775261447659,-500.0,0.00041095,120]
[419659639,1775261447669,-500.0,0.00041095,120]
[419659640,1775261447678,-500.0,0.00041095,120]
[419659641,1775261447688,-500.0,0.00041095,120]
[419659642,1775261447699,-511.24,0.00041095,120]
[419659643,1775261447708,-720.81,0.00041095,120]
[419659644,1775261447718,-150.0,0.00041095,2]
[419659645,1775261447727,-500.0,0.00041095,120]
[419659646,1775261447737,-500.0,0.00041095,120]
[419659647,1775261447747,-1274.24,0.00041095,120]
[419659648,1775261447756,-500.0,0.00041095,120]
[419659649,1775261447765,-384.17026774,0.00041095,120]
[419659650,1775261447775,-500.0,0.00041095,120]
[419659651,1775261447784,-853.09,0.00041095,120]
[419659652,1775261447793,-500.0,0.00041095,120]
[419659653,1775261447802,-500.0,0.00041095,120]
[419659654,1775261447812,-500.0,0.00041095,120]
[419659655,1775261447821,-56953.68871363,0.00041095,2]
[419659656,1775261447830,-500.0,0.00041095,120]
[419659657,1775261447840,-1483.52,0.00041095,120]
[419659658,1775261447849,-500.0,0.00041095,30]
[419659659,1775261447859,-500.0,0.00041095,120]
[419659660,1775261447868,-593.17,0.00041095,120]
[419659661,1775261447884,-500.0,0.00041095,12]
[419659662,1775261447896,-500.0,0.00041095,120]
[419659663,1775261447906,-1187.77,0.00041095,120]
[419659664,1775261447916,-500.0,0.00041095,120]
[419659665,1775261447926,-282.37306361,0.00041095,120]
[419659666,1775261447936,-500.0,0.00041095,120]
[419659667,1775261447946,-500.0,0.00041095,120]
[419659668,1775261447955,-1517.25,0.00041095,120]
[419659669,1775261447967,-500.0,0.00041095,120]
[419659670,1775261447976,-500.0,0.00041095,120]
[419659671,1775261447986,-500.0,0.00041095,120]
[419659672,1775261447996,-500.0,0.00041095,120]
[419659673,1775261448005,-500.0,0.00041095,120]
[419659674,1775261448015,-765.08,0.00041095,120]
[419659675,1775261448025,-870.15,0.00041095,120]
[419659676,1775261448035,-1663.67,0.00041095,120]
[419659677,1775261448044,-500.0,0.00041095,120]
[419659678,1775261448054,-500.0,0.00041095,120]
[419659679,1775261448063,-500.0,0.00041095,120]
[419659680,1775261448074,-500.0,0.00041095,120]
[419659681,1775261448084,-500.0,0.00041095,120]
[419659682,1775261448094,-500.0,0.00041095,120]
[419659683,1775261448105,-500.0,0.00041095,2]
[419659684,1775261448116,-500.0,0.00041095,120]
[419659685,1775261448126,-500.0,0.00041095,120]
[419659686,1775261448135,-500.0,0.00041095,120]
[419659687,1775261448145,-500.0,0.00041095,120]
[419659688,1775261448155,-500.0,0.00041095,120]
[419659689,1775261448165,-500.0,0.00041095,120]
[419659690,1775261448175,-572.94,0.00041095,120]
[419659691,1775261448185,-500.0,0.00041095,120]
[419659692,1775261448195,-500.0,0.00041095,120]
[419659693,1775261448204,-500.0,0.00041095,120]
[419659694,1775261448214,-175.97336056,0.00041095,120]
[419659695,1775261448224,-500.0,0.00041095,120]
[419659696,1775261448234,-500.0,0.00041095,120]
[419659697,1775261448243,-935.83,0.00041095,120]
[419659698,1775261448254,-500.0,0.00041095,14]
[419659699,1775261448264,-500.0,0.00041095,120]
[419659700,1775261448273,-1556.41,0.00041095,7]
[419659701,1775261448283,-1765.4,0.00041095,120]
[419659702,1775261448294,-500.0,0.00041095,120]
[419659703,1775261448303,-500.0,0.00041095,120]
[419659704,1775261448314,-500.0,0.00041095,120]
[419659705,1775261448324,-693.97,0.00041095,120]
[419659706,1775261448336,-500.0,0.00041095,120]
[419659707,1775261448346,-500.0,0.00041095,120]
[419659708,1775261448358,-500.0,0.00041095,120]
[419659709,1775261448369,-1105.72,0.00041095,120]
[419659710,1775261448379,-735.17,0.00041095,120]
[419659711,1775261448389,-303.39226265,0.00041095,120]
[419659712,1775261448400,-1556.35,0.00041095,120]
[419659713,1775261448410,-500.0,0.00041095,120]
[419659714,1775261448420,-500.0,0.00041095,120]
[419659715,1775261448430,-500.0,0.00041095,120]
[419659716,1775261448439,-500.0,0.00041095,120]
[419659717,1775261448449,-500.0,0.00041095,120]
[419659718,1775261448458,-500.0,0.00041095,120]
[419659719,1775261448468,-500.0,0.00041095,120]
[419659720,1775261448477,-1361.13,0.00041095,120]
[419659721,1775261448487,-500.0,0.00041095,120]
[419659722,1775261448496,-500.0,0.00041095,120]
[419659723,1775261448506,-500.0,0.00041095,120]
[419659724,1775261448516,-500.0,0.00041095,120]
[419659725,1775261448526,-500.0,0.00041095,120]
[419659726,1775261448536,-500.0,0.00041095,120]
[419659727,1775261448546,-1156.31,0.00041095,120]
[419659728,1775261448556,-500.0,0.00041095,120]
[419659729,1775261448566,-679.78,0.00041095,120]
[419659730,1775261448576,-363.34999236,0.00041095,120]
[419659731,1775261448586,-559.47,0.00041095,120]
[419659732,1775261448595,-500.0,0.00041095,120]
[419659733,1775261448605,-500.0,0.00041095,120]
[419659734,1775261448616,-524.34,0.00041095,120]
[419659735,1775261448627,-500.0,0.00041095,120]
[419659736,1775261448637,-500.0,0.00041095,120]
[419659737,1775261448647,-1452.3,0.00041095,120]
[419659738,1775261448657,-500.0,0.00041095,120]
[419659739,1775261448667,-500.0,0.00041095,120]
[419659740,1775261448677,-516.71,0.00041095,120]
[419659741,1775261448689,-1586.67,0.00041095,60]
[419659742,1775261448700,-500.0,0.00041095,120]
[419659743,1775261448710,-500.0,0.00041095,120]
[419659744,1775261448721,-500.0,0.00041095,120]
[419659745,1775261448731,-155.74178227,0.00041095,120]
[419659746,1775261448741,-447.09979263,0.00041095,120]
[419659747,1775261448751,-500.0,0.00041095,120]
[419659748,1775261448760,-500.0,0.00041095,120]
[419659749,1775261448770,-500.0,0.00041095,120]
[419659750,1775261448781,-500.0,0.00041095,120]
[419659751,1775261448791,-500.0,0.00041095,120]
[419659752,1775261448804,-500.0,0.00041095,120]
[419659753,1775261448813,-500.0,0.00041095,120]
[419659754,1775261448824,-152.532318,0.00041095,120]
[419659755,1775261448834,-703.32,0.00041095,120]
[419659756,1775261448843,-500.0,0.00041095,120]
[419659757,1775261448853,-378.33416017,0.00041095,120]
[419659758,1775261448863,-1972.55,0.00041095,120]
[419659759,1775261448873,-500.0,0.00041095,120]
[419659760,1775261448883,-500.0,0.00041095,120]
[419659761,1775261448893,-802.21,0.00041095,120]
[419659762,1775261448902,-500.0,0.00041095,120]
[419659763,1775261448912,-500.0,0.00041095,120]
[419659764,1775261448921,-500.0,0.00041095,120]
[419659765,1775261448931,-500.0,0.00041095,120]
[419659766,1775261448940,-300.0,0.00041095,2]
[419659767,1775261448949,-500.0,0.00041095,120]
[419659768,1775261448959,-500.0,0.00041095,120]
[419659769,1775261448968,-1520.17,0.00041095,120]
[419659770,1775261448978,-500.0,0.00041095,120]
[419659771,1775261448987,-500.0,0.00041095,120]
[419659772,1775261448997,-500.0,0.00041095,120]
[419659773,1775261449007,-500.0,0.00041095,120]
[419659774,1775261449017,-500.0,0.00041095,120]
[419659775,1775261449026,-1468.8,0.00041095,120]
[419659776,1775261449036,-380.12050259,0.00041095,120]
[419659777,1775261449047,-500.0,0.00041095,120]
[419659778,1775261449057,-974.99,0.00041095,120]
[419659779,1775261449067,-500.0,0.00041095,120]
[419659780,1775261449076,-500.0,0.00041095,5]
[419659781,1775261449085,-500.0,0.00041095,120]
[419659782,1775261449095,-500.0,0.00041095,120]
[419659783,1775261449104,-500.0,0.00041095,120]
[419659784,1775261449114,-500.0,0.00041095,120]
[419659785,1775261449123,-500.0,0.00041095,120]
[419659786,1775261449132,-500.0,0.00041095,120]
[419659787,1775261449142,-500.0,0.00041095,120]
[419659788,1775261449151,-500.0,0.00041095,120]
[419659789,1775261449160,-500.0,0.00041095,120]
[419659790,1775261449170,-500.0,0.00041095,120]
[419659791,1775261449179,-500.0,0.00041095,120]
[419659792,1775261449188,-740.25,0.00041095,120]
[419659793,1775261449198,-510.99144968,0.00041095,120]
[419659794,1775261449207,-500.0,0.00041095,120]
[419659795,1775261449217,-500.0,0.00041095,120]
[419659796,1775261449226,-500.0,0.00041095,120]
[419659797,1775261449236,-782.64,0.00041095,120]
[419659798,1775261449246,-972.58,0.00041095,120]
[419659799,1775261449256,-500.0,0.00041095,120]
[419659800,1775261449265,-344.35594168,0.00041095,120]
[419659801,1775261449275,-525.05,0.00041095,60]
[419659802,1775261449284,-554.93824147,0.00041095,120]